fUST/lending_fUST_20240319
["ID","MTS","AMOUNT","RATE_DAILY","PERIOD"]
[319549623,1710845379614,-641.15569708,0.00037528,4]
[319549624,1710845379640,-6378.02289157,0.00037528,4]
[319549625,1710845379665,-403.25662941,0.0003753,2]
[319549626,1710845379691,-171.57733227,0.00037602,8]
[319549627,1710845379715,-4167.04,0.00037702,30]
[319549628,1710845379739,-4167.04,0.00037702,30]
[319549629,1710845379766,-1445.26742179,0.00037702,30]
[319549630,1710845380324,283.52744632,0.00034998,3]
[319549631,1710845380680,-2721.77257821,0.00037702,30]
[319549632,1710845380707,-4167.04,0.00037702,30]
[319549633,1710845380734,-4167.04,0.00037702,30]
[319549634,1710845380760,-4167.04,0.00037702,30]
[319549635,1710845380791,-154.95351395,0.00037871,2]
[319549636,1710845380923,-212.55018452,0.00037909,2]
[319549637,1710845380950,-154.93802479,0.0003791,4]
[319549638,1710845380974,-2060.99326528,0.0003791,4]
[319549639,1710845380999,-7193.67243325,0.00037911,30]
[319549640,1710845381513,-25000.0,0.00037911,30]
[319549641,1710845381924,413.01773187,0.00034998,2]
[319549642,1710845382314,-25000.0,0.00037911,30]
[319549650,1710845383186,-2699.62086675,0.00037911,30]
[319549651,1710845383212,-150.0,0.00038999,2]
[319549652,1710845383236,-976.62956324,0.00039968,2]
[319549653,1710845383259,-150.0,0.00039999,2]
[319549654,1710845383287,-154.93802479,0.0004,4]
[319549655,1710845383310,-166.4766271,0.0004,4]
[319549656,1710845383334,-155.00620025,0.0004,2]
[319549657,1710845383359,-150.0,0.0004,56]
[319549658,1710845384071,272.32427809,0.00032999,2]
[319549660,1710845388988,9503.6,0.0004,2]
[319549664,1710845392893,1047.67794932,0.00037909,4]
[319549666,1710845394481,348.45739296,0.00034998,2]
[319549667,1710845394646,500.0,0.00034998,2]
[319549668,1710845394717,1177.40322805,0.00037909,4]
[319549669,1710845394888,500.0,0.00034998,2]
[319549670,1710845395073,2173.57910032,0.00037909,2]
[319549671,1710845395156,500.0,0.00034999,2]
[319549673,1710845395429,635.88,0.00034999,2]
[319549674,1710845400331,283.52744632,0.00034998,3]
[319549676,1710845403036,500.0,0.00034998,2]
[319549677,1710845405851,154.93802479,0.0004,4]
[319549682,1710845420333,283.52744632,0.00034998,3]
[319549683,1710845423792,190.32555129,0.0004,4]
[319549765,1710845432526,-169.906622,0.00040299,4]
[319549767,1710845432536,-732.7493681,0.00040299,4]
[319549769,1710845432545,-150.0,0.000403,15]
[319549771,1710845432560,-300.0,0.000406,15]
[319549773,1710845432569,-150.0,0.00040999,2]
[319549775,1710845432579,-3602.42387604,0.00041095,4]
[319549897,1710845434130,-1885.5,0.00041095,4]
[319550266,1710845438592,-1801.2451429,0.00041095,4]
[319550267,1710845438602,-1226.2393292,0.00041096,7]
[319550268,1710845438611,-145.73877499,0.00041096,2]
[319550378,1710845440683,-31.03894121,0.00041096,2]
[319550381,1710845440693,-500.0,0.00041552,30]
[319550383,1710845440702,-500.0,0.00041552,30]
[319550384,1710845440712,-2906.02597552,0.00041717,120]
[319550387,1710845440726,-3343.97402448,0.00041717,120]
[319550389,1710845440736,-150.0,0.00041999,60]
[319550391,1710845440745,-150.0,0.00042999,60]
[319550393,1710845440756,-976.62956324,0.0004442,2]
[319550395,1710845440766,-2547.25,0.00044998,10]
[319550397,1710845440776,-4167.04,0.00044998,30]
[319550398,1710845440785,-401.3748712,0.00047211,2]
[319550399,1710845440794,-307.206267,0.00047211,2]
[319550400,1710845440805,-272.0,0.00047677,2]
[319550401,1710845440819,-6250.0,0.00047677,120]
[319550402,1710845440828,-976.62956324,0.00048872,2]
[319550403,1710845440838,-160.00572248,0.0005,60]
[319550404,1710845440848,-272.0,0.00050677,2]
[319550405,1710845440857,-1197.34622779,0.00052898,4]
[319550406,1710845440867,-2484.09040037,0.00052898,2]
[319550407,1710845440876,-1345.60368921,0.00052898,4]
[319550408,1710845440886,-241.81256807,0.00052899,4]
[319550409,1710845440896,-272.0,0.000529,2]
[319550410,1710845440906,-1525.76974277,0.000529,30]
[319550411,1710845440916,-126272.31154017,0.000529,30]
[319550412,1710845440928,-23726.68845983,0.000529,30]
[319550413,1710845440939,-976.62956324,0.00053324,2]
[319550414,1710845440948,-155.47412469,0.00053324,2]
[319550415,1710845440958,-500.0,0.00053424,120]
[319550416,1710845440968,-6250.0,0.00053637,120]
[319550417,1710845440978,-272.0,0.00053677,2]
[319550418,1710845440988,-272.0,0.00053677,2]
[319550419,1710845440998,-2547.25,0.00053998,10]
[319550420,1710845441008,-4167.04,0.00053998,120]
[319550421,1710845441017,-500.0,0.00053999,120]
[319550422,1710845441027,-500.0,0.00053999,120]
[319550423,1710845441036,-500.0,0.00053999,120]
[319550424,1710845441046,-500.0,0.00053999,120]
[319550425,1710845441060,-500.0,0.00053999,120]
[319550426,1710845441068,-500.0,0.00053999,120]
[319550427,1710845441078,-500.0,0.00053999,120]
[319550428,1710845441092,-500.0,0.00053999,120]
[319550429,1710845441102,-500.0,0.00053999,120]
[319550430,1710845441112,-500.0,0.00053999,120]
[319550431,1710845441123,-500.0,0.00053999,120]
[319550432,1710845441132,-500.0,0.00053999,120]
[319550433,1710845441141,-500.0,0.00053999,120]
[319550434,1710845441151,-500.0,0.00053999,120]
[319550435,1710845441161,-500.0,0.00053999,120]
[319550436,1710845441171,-500.0,0.00053999,120]
[319550437,1710845441181,-500.0,0.00053999,120]
[319550438,1710845441192,-500.0,0.00053999,120]
[319550439,1710845441202,-500.0,0.00053999,120]
[319550440,1710845441212,-500.0,0.00053999,120]
[319550441,1710845441222,-500.0,0.00053999,120]
[319550442,1710845441232,-500.0,0.00053999,120]
[319550443,1710845441242,-500.0,0.00053999,120]
[319550444,1710845441260,-500.0,0.00053999,120]
[319550445,1710845441272,-500.0,0.00053999,120]
[319550446,1710845441283,-500.0,0.00053999,120]
[319550447,1710845441292,-500.0,0.00053999,120]
[319550448,1710845441303,-500.0,0.00053999,120]
[319550449,1710845441322,-500.0,0.00053999,120]
[319550450,1710845441332,-500.0,0.00053999,120]
[319550451,1710845441342,-500.0,0.00053999,120]
[319550452,1710845441354,-30.79743543,0.00053999,120]
[319550463,1710845442333,364.53528809,0.00034998,3]
[319550504,1710845442953,626.38233649,0.00034998,2]
[319550608,1710845443701,-469.20256457,0.00053999,120]
[319550610,1710845443711,-500.0,0.00053999,120]
[319550613,1710845443721,-500.0,0.00053999,120]
[319550615,1710845443730,-500.0,0.00053999,120]
[319550617,1710845443739,-500.0,0.00053999,120]
[319550618,1710845443749,-500.0,0.00053999,120]
[319550619,1710845443758,-500.0,0.00053999,120]
[319550620,1710845443767,-500.0,0.00053999,120]
[319550621,1710845443776,-500.0,0.00053999,120]
[319550623,1710845443785,-500.0,0.00053999,120]
[319550625,1710845443794,-500.0,0.00053999,120]
[319550627,1710845443804,-500.0,0.00053999,120]
[319550629,1710845443816,-500.0,0.00053999,120]
[319550630,1710845443825,-500.0,0.00053999,120]
[319550631,1710845443835,-500.0,0.00053999,120]
[319550632,1710845443845,-500.0,0.00053999,120]
[319550633,1710845443854,-1.60718954,0.00053999,120]
[319550634,1710845443867,-550.63281046,0.00053999,120]
[319550635,1710845443877,-4167.04,0.00054997,120]
[319550636,1710845443887,-499.64607222,0.00054997,120]
[319550637,1710845443897,-155.16136782,0.00054998,4]
[319550638,1710845443906,-204.98847702,0.00054998,4]
[319550639,1710845443916,-170.66943208,0.00054998,4]
[319550640,1710845443927,-3073.23402256,0.00054998,4]
[319550641,1710845443937,-154.95351395,0.00054998,4]
[319550642,1710845443948,-29311.04455109,0.00054998,4]
[319550643,1710845443958,-309.9380155,0.00054999,120]
[319550644,1710845443968,-500.0,0.00054999,120]
[319550645,1710845443978,-500.0,0.00054999,120]
[319550646,1710845443989,-500.0,0.00054999,120]
[319550647,1710845443999,-500.0,0.00054999,120]
[319550648,1710845444010,-500.0,0.00054999,120]
[319550649,1710845444020,-500.0,0.00054999,120]
[319550651,1710845444030,-624.97076815,0.00054999,120]
[319550653,1710845444041,-598.8010073,0.00054999,120]
[319550655,1710845444052,-500.0,0.00054999,120]
[319550657,1710845444069,-500.0,0.00054999,120]
[319550659,1710845444080,-500.0,0.00054999,120]
[319550661,1710845444090,-500.0,0.00054999,120]
[319550663,1710845444103,-326.7997673,0.00054999,120]
[319550665,1710845444112,-626.87754455,0.00054999,120]
[319550667,1710845444124,-708.7,0.00054999,120]
[319550669,1710845444134,-708.7,0.00054999,120]
[319550671,1710845444144,-708.7,0.00054999,120]
[319550673,1710845444154,-173.43613719,0.00054999,120]
[319550675,1710845444165,-303.86098979,0.00054999,120]
[319550677,1710845444175,-500.0,0.00054999,120]
[319550679,1710845444185,-500.0,0.00054999,120]
[319550681,1710845444195,-500.0,0.00054999,120]
[319550683,1710845444206,-523.3803796,0.00054999,120]
[319550685,1710845444216,-272.0,0.000559,2]
[319550688,1710845444226,-272.0,0.00056677,2]
[319550696,1710845444323,-272.0,0.00056677,2]
[319550698,1710845444334,-272.0,0.00059677,2]
[319550700,1710845444344,-500.0,0.00059899,120]
[319550702,1710845444354,-708.7,0.00059899,120]
[319550703,1710845444363,-154.92253873,0.00069,30]
[319550705,1710845444373,-500.0,0.00069899,120]
[319550707,1710845444383,-708.7,0.00069899,120]
[319550709,1710845444392,-500.0,0.00079899,120]
[319550710,1710845444401,-708.7,0.00079899,120]
[319550712,1710845444411,-500.0,0.0008,120]
[319550714,1710845444421,-1390.0,0.00098,90]
[319550715,1710845444430,-500.0,0.00149999,120]
[319550717,1710845444439,-500.0,0.00149999,120]
[319550719,1710845444449,-500.0,0.00149999,120]
[319550721,1710845444458,-500.0,0.00149999,120]
[319550722,1710845444467,-708.7,0.00149999,120]
[319550724,1710845444476,-708.7,0.00149999,120]
[319550726,1710845444485,-708.7,0.00149999,120]
[319550728,1710845444494,-708.7,0.00149999,120]
[319550729,1710845444504,-708.7,0.00149999,120]
[319550730,1710845444513,-708.7,0.00149999,120]
[319550732,1710845444522,-708.7,0.00149999,120]
[319550734,1710845444531,-708.7,0.00149999,120]
[319550736,1710845444540,-708.7,0.00149999,120]
[319550737,1710845444549,-708.7,0.00149999,120]
[319550739,1710845444563,-708.7,0.00149999,120]
[319550741,1710845444572,-708.7,0.00149999,120]
[319550743,1710845444582,-708.7,0.00149999,120]
[319550745,1710845444591,-708.7,0.00149999,120]
[319550746,1710845444600,-708.7,0.00149999,120]
[319550747,1710845444610,-708.7,0.00149999,120]
[319550748,1710845444619,-708.7,0.00149999,120]
[319550749,1710845444629,-708.8286516,0.00149999,120]
[319550750,1710845444638,-500.0,0.0015,120]
[319550751,1710845444649,-500.0,0.0025,120]
[319550752,1710845444658,-10000.0,0.00297736,120]
[319550753,1710845444667,-500.0,0.0035,120]
[319550754,1710845444677,-10000.0,0.00362241,120]
[319550755,1710845444687,-4167.04,0.00420999,120]
[319550756,1710845444697,-4167.04,0.00427999,120]
[319550757,1710845444706,-240.90480784,0.00440721,120]
[319550758,1710845444728,-9759.09519216,0.00440721,120]
[319550759,1710845444738,-500.0,0.0045,120]
[319550760,1710845444747,-535.06377661,0.00491,120]
[319550761,1710845444756,-527.0,0.00492,120]
[319550762,1710845444765,-527.0,0.00493,120]
[319550763,1710845444775,-4666.0,0.00493,120]
[319550764,1710845444787,-527.0,0.00494,120]
[319550765,1710845444796,-4666.0,0.00494,120]
[319550766,1710845444808,-527.0,0.00495,120]
[319550767,1710845444817,-4666.0,0.00495,120]
[319550768,1710845444826,-527.0,0.00496,120]
[319550769,1710845444836,-4666.0,0.00496,120]
[319550770,1710845444845,-527.0,0.00497,120]
[319550771,1710845444855,-4666.0,0.00497,120]
[319550772,1710845444864,-530.03011334,0.00498,120]
[319550773,1710845444874,-527.0,0.00498,120]
[319550774,1710845444884,-4666.0,0.00498,120]
[319550775,1710845444893,-529.0,0.00499,120]
[319550776,1710845444902,-527.0,0.00499,120]
[319550777,1710845444912,-4666.0,0.00499,120]
[319550778,1710845444921,-264.98476628,0.005,31]
[319550779,1710845444932,-529.0,0.005,120]
[319550780,1710845444941,-527.0,0.005,120]
[319550781,1710845444952,-4666.0,0.005,120]
[319550782,1710845444962,-10000.0,0.00536205,120]
[319550783,1710845444973,-500.0,0.0055,120]
[319550784,1710845444983,-700.0,0.0056,110]
[319550785,1710845444993,-155.4741246,0.00602944,30]
[319550786,1710845445004,-500.0,0.0065,120]
[319550787,1710845445014,-1826.71951231,0.00652375,120]
[319550788,1710845445048,1273.63,0.00034998,2]
[319550789,1710845445065,-441.6672,0.00652375,120]
[319550790,1710845445095,61.54067583,0.00034998,2]
[319550791,1710845445122,1212.08932417,0.00034998,2]
[319550792,1710845445161,1273.63,0.00034999,2]
[319550793,1710845445191,1273.63,0.00035616,2]
[319550794,1710845445234,1273.63,0.00037908,10]
[319550795,1710845445264,1273.63,0.00037908,10]
[319550796,1710845445478,1273.63,0.00037908,10]
[319550797,1710845445745,1273.63,0.00037908,10]
[319550802,1710845446019,1273.63,0.00037908,10]
[319550835,1710845446278,1273.63,0.00037908,10]
[319550919,1710845446708,-484.246288,0.00040685,2]
[319550947,1710845446846,-2486.9986689,0.00040685,2]
[319550950,1710845446856,-595.27610959,0.00052899,120]
[319550953,1710845446865,-500.0,0.00052899,120]
[319550956,1710845446875,-500.0,0.00052899,120]
[319550959,1710845446884,-500.0,0.00052899,120]
[319550961,1710845446893,-500.0,0.00052899,120]
[319550964,1710845446903,-500.0,0.00052899,120]
[319550966,1710845446912,-166.75055813,0.00052899,120]
[319550968,1710845446921,-1273.63,0.00052899,10]
[319550970,1710845446931,-11674.6648928,0.000529,30]
[319550972,1710845446942,-6472.19999998,0.000529,30]
[319550974,1710845446954,-7720.97936399,0.000529,30]
[319550989,1710845447270,-628.7,0.000529,30]
[319550990,1710845447282,-123502.45574323,0.000529,30]
[319550991,1710845447293,-169.906622,0.00053998,4]
[319550993,1710845447302,-4674.65991282,0.0049,120]
[319550994,1710845447315,-4666.0,0.00491,120]
[319550995,1710845447325,-4666.0,0.00492,120]
[319550996,1710845447335,-7731.61328769,0.00652375,120]
[319550997,1710845447346,-700.0,0.0069,110]
[319550998,1710845447355,-1927.36314385,0.00749997,30]
[319550999,1710845447365,-500.0,0.0075,120]
[319551000,1710845447866,166.4766271,0.0004,4]
[319551040,1710845463873,166.4766271,0.0004,4]
[319551045,1710845485809,154.93802479,0.0004,4]
[319551046,1710845487011,159.116211,0.00020764,2]
[319551048,1710845487572,243.489505,0.00020764,2]
[319551057,1710845503794,154.93802479,0.0004,4]
[319551058,1710845505542,12553.43565605,0.00034998,2]
[319551059,1710845505568,5778.50434395,0.00034998,2]
[319551060,1710845505824,18331.94,0.00034998,2]
[319551062,1710845506088,889.55565605,0.00034999,2]
[319551063,1710845506120,17442.38434395,0.00034999,2]
[319551064,1710845506342,7557.61565605,0.00035616,2]
[319551074,1710845523496,-10774.32434395,0.00035616,2]
[319551075,1710845523524,-14225.67565605,0.00037908,30]
[319551076,1710845525270,-211.58599706,0.00035615,4]
[319551077,1710845525302,-1177.40322805,0.00035615,4]
[319551078,1710845525362,-4106.26434395,0.00037908,30]
[319551079,1710845525404,-18331.94,0.00037908,30]
[319551080,1710845525443,-1172.80643094,0.00037908,30]
[319551082,1710845527998,-2173.57910032,0.00035615,2]
[319551083,1710845528035,-802.11666527,0.00035615,4]
[319551084,1710845528079,-641.15569708,0.00035615,4]
[319551085,1710845528111,-17159.13356906,0.00037908,30]
[319551086,1710845528146,-4224.01496827,0.00037908,30]
[319551106,1710845578446,-154.93802479,0.00035613,4]
[319551107,1710845578467,-828.77020049,0.00035613,4]
[319551108,1710845578490,-6378.02289157,0.00035614,4]
[319551109,1710845578512,-11335.26888315,0.00037427,2]
[319551124,1710845623430,155.31007391,0.00032999,2]
[319551139,1710845652529,16545.92015652,0.00035,10]
[319551140,1710845652554,25000.0,0.00035,10]
[319551141,1710845652579,25000.0,0.00035,10]
[319551143,1710845655499,10000.0,0.00021,5]
[319551145,1710845656426,7486.23107642,0.00021888,2]
[319551149,1710845666386,-7721.0,0.00035,10]
[319551174,1710845692324,-1950.36732985,0.00031,2]
[319551175,1710845702009,-2173.57910032,0.00034998,2]
[319551176,1710845702035,-211.58599706,0.00034999,4]
[319551177,1710845702062,-641.15569708,0.00034999,4]
[319551178,1710845702093,-500.0,0.00034999,2]
[319551179,1710845702119,-500.0,0.00034999,2]
[319551180,1710845702145,-340.38490524,0.00034999,2]
[319551181,1710845702178,-5633.2943003,0.00035,10]
[319551182,1710845705983,-10000.0,0.00035,10]
[319551183,1710845710891,-6378.02289157,0.00034999,4]
[319551184,1710845710916,-3621.97710843,0.00035,10]
[319551185,1710845714427,-615.5428543,0.00034998,2]
[319551186,1710845714460,-742.95,0.00034999,2]
[319551187,1710845714486,-742.95,0.00034999,2]
[319551188,1710845714515,-742.95,0.00034999,2]
[319551189,1710845714541,-7155.6071457,0.00035,10]
[319551190,1710845718284,-211.58599706,0.00034998,4]
[319551191,1710845718309,-9788.41400294,0.00035,10]
[319551192,1710845722639,-1177.40322805,0.00034997,4]
[319551193,1710845722663,-8822.59677195,0.00035,10]
[319551210,1710845786756,202.68,0.00034,120]
[319551217,1710845890257,-6378.02289157,0.00034643,4]
[319551218,1710845890282,-1177.40322805,0.00034644,4]
[319551219,1710845890308,-2444.57388038,0.00034644,4]
[319551220,1710845907907,-641.15569708,0.00034642,4]
[319551221,1710845907932,-9358.84430292,0.00034644,4]
[319551222,1710845909173,-8724.4075633,0.00034644,4]
[319551223,1710845909198,-1275.5924367,0.00034645,4]
[319551224,1710845910322,-5102.43045487,0.00034645,4]
[319551225,1710845910350,-2641.95218285,0.00034646,2]
[319551226,1710845910376,-319.82100877,0.00034998,4]
[319551227,1710845910412,-321.39145823,0.00034999,4]
[319551228,1710845910439,-1614.40489528,0.00035,10]
[319551230,1710845913671,-10000.0,0.00035,10]
[319551232,1710845924837,-10000.0,0.00035,10]
[319551233,1710845925935,-8040.66003138,0.00035,10]
[319551234,1710845925960,-500.37952564,0.00035,7]
[319551235,1710845925986,-300.0,0.00035,2]
[319551236,1710845926010,-154.93802479,0.00035,4]
[319551286,1710845955474,1004.02241819,0.00021104,2]
[319551287,1710845955499,995.97758181,0.00021104,2]
[319551289,1710845956038,2000.0,0.00021176,2]
[319551290,1710845956629,2000.0,0.00021247,2]
[319551291,1710845957215,2000.0,0.00021319,2]
[319551292,1710845957809,2072.607029,0.0002139,2]
[319551297,1710846195646,-641.15569708,0.00036239,4]
[319551298,1710846195686,-254.53762331,0.0003624,2]
[319551299,1710846199601,-3078.47946793,0.00037427,2]
[319551300,1710846199628,-404.18425281,0.00037905,4]
[319551301,1710846199652,-252.08412308,0.00037906,4]
[319551302,1710846199677,-941.35213922,0.00037907,2]
[319551303,1710846203367,-6250.0,0.00038861,120]
[319551304,1710846204900,203.85093936,0.00034999,2]
[319551305,1710846246471,283.52744632,0.00034999,3]
[319551306,1710846251640,-1000000.0,0.00041031,60]
[319551307,1710846264407,202.51960451,0.00034999,3]
[319551308,1710846266835,-107365.1018949,0.00041031,60]
[319551309,1710846266859,-145734.12673708,0.00041031,60]
[319551356,1710846432194,-3772.77211815,0.00039991,4]
[319551357,1710846441228,197.18898522,0.00034876,7]
[319551438,1710846632689,-641.15569708,0.00039618,4]
[319551440,1710846632699,-74.12430292,0.0003962,120]
[319551443,1710846632715,-3098.4758003,0.0003962,120]
[319551450,1710846632775,-2487.85488678,0.0003962,120]
[319551452,1710846632785,-6378.02289157,0.00039999,4]
[319551454,1710846632796,-154.93802479,0.0004,4]
[319551456,1710846632807,-3014.70282386,0.0004,15]
[319551458,1710846632818,-4769.78779799,0.0004,2]
[319551461,1710846632829,-300.0,0.00040036,2]
[319551463,1710846632839,-150.0,0.00040036,2]
[319551477,1710846632850,-280.6472089,0.00040041,120]
[319551478,1710846632980,-2384.48374139,0.00040545,4]
[319551480,1710846632990,-199.4577672,0.00040586,2]
[319551482,1710846632999,-213.42713912,0.00041031,4]
[319551484,1710846633009,-241.81256807,0.00041037,4]
[319551486,1710846633019,-1498.3533085,0.00041037,4]
[319551488,1710846633029,-2128.12088805,0.00041037,4]
[319551490,1710846633039,-1345.60368921,0.00041037,4]
[319551492,1710846633049,-468.85190913,0.00041037,33]
[319551494,1710846633059,-2484.09040037,0.00041037,2]
[319551496,1710846633068,-205.93640525,0.00041037,4]
[319551497,1710846633078,-2487.34769899,0.00041038,7]
[319551499,1710846633088,-440.3000568,0.00042,120]
[319551501,1710846633098,-5660.45499,0.00046223,120]
[319551503,1710846633108,-153.0,0.00049247,2]
[319551505,1710846633118,-153.0,0.00049247,2]
[319551507,1710846633129,-153.0,0.00049247,2]
[319551509,1710846633139,-153.0,0.00049247,2]
[319551511,1710846633149,-153.0,0.00049247,2]
[319551513,1710846633159,-153.0,0.00049247,2]
[319551515,1710846633169,-153.0,0.00049247,2]
[319551517,1710846633178,-153.0,0.00049247,2]
[319551519,1710846633188,-153.0,0.00049247,2]
[319551521,1710846633197,-153.0,0.00049247,2]
[319551523,1710846633206,-504.92602275,0.0005,10]
[319551525,1710846633220,-595.27610959,0.00052799,120]
[319551527,1710846633231,-500.0,0.00052799,120]
[319551529,1710846633242,-500.0,0.00052799,120]
[319551531,1710846633251,-500.0,0.00052799,120]
[319551533,1710846633262,-500.0,0.00052799,120]
[319551535,1710846633272,-500.0,0.00052799,120]
[319551537,1710846633282,-166.75055813,0.00052799,120]
[319551539,1710846633291,-99153.82667009,0.000528,2]
[319551541,1710846633301,-5660.45499,0.00052826,120]
[319551543,1710846633311,-391.53953585,0.00052897,4]
[319551545,1710846633321,-169.906622,0.00052898,4]
[319551547,1710846633332,-149999.0,0.000529,30]
[319551549,1710846633343,-174.810053,0.00053897,2]
[319551551,1710846633352,-154.95351395,0.00053997,4]
[319551553,1710846633363,-181.04658595,0.00053997,4]
[319551555,1710846633372,-1038.83316994,0.00053997,4]
[319551557,1710846633383,-264.91012376,0.00055,12]
[319551559,1710846633393,-5660.45499,0.00059429,120]
[319551561,1710846633402,-154.93802479,0.00069,30]
[319551563,1710846633412,-500.0,0.0008,120]
[319551565,1710846633422,-500.0,0.0009,120]
[319551567,1710846633435,-500.0,0.0009,120]
[319551569,1710846633445,-1000.0,0.001,120]
[319551571,1710846633454,-644.5791473,0.00149995,14]
[319551573,1710846633468,-342.00513805,0.00149997,14]
[319551575,1710846633477,-1117.81528858,0.00149997,14]
[319551577,1710846633491,-1000.0,0.002,120]
[319551579,1710846633500,-1131.15,0.002,113]
[319551581,1710846633509,-254.82271951,0.0023,2]
[319551583,1710846633519,-642.21208436,0.00299999,30]
[319551584,1710846633529,-10000.0,0.003,120]
[319551586,1710846633538,-499.0,0.003,120]
[319551589,1710846633557,-2112.3,0.0036,99]
[319551591,1710846633568,-10000.0,0.004,120]
[319551593,1710846633579,-2391.80981,0.00479,101]
[319551596,1710846633589,-10000.0,0.005,120]
[319551598,1710846633600,-1499.0,0.005,120]
[319551600,1710846633609,-545.0,0.005,120]
[319551602,1710846633619,-1528.13,0.00510651,77]
[319551604,1710846633628,-10000.0,0.00515581,120]
[319551605,1710846633638,-10000.0,0.00536205,120]
[319551607,1710846633647,-10000.0,0.00557653,120]
[319551609,1710846633658,-10000.0,0.00579959,120]
[319551611,1710846633667,-10000.0,0.006,120]
[319551613,1710846633677,-10000.0,0.00603157,120]
[319551615,1710846633686,-1000.0,0.0061705,120]
[319551617,1710846633696,-10000.0,0.00627284,120]
[319551619,1710846633706,-10000.0,0.00652375,120]
[319551621,1710846633719,-10000.0,0.0067847,120]
[319551623,1710846633729,-19999.019,0.00689,120]
[319551625,1710846633739,-6184.64386641,0.007,120]
[319551627,1710846633749,-10000.0,0.00705609,120]
[319551629,1710846633759,-10000.0,0.00733833,120]
[319551824,1710846642045,-1047.67794932,0.00039617,4]
[319551825,1710846642055,-10000.0,0.00793714,120]
[319551826,1710846642064,-1500.0,0.0095,120]
[319551827,1710846642074,-10000.0,0.00965675,120]
[319551828,1710846642084,-174.81005296,0.00971905,120]
[319551829,1710846642093,-154.95351395,0.00979018,2]
[319551830,1710846642103,-1570.14224023,0.00979999,30]
[319551831,1710846642114,-890.0,0.0098,90]
[319551832,1710846642124,-1885.16630982,0.00994997,30]
[319551833,1710846642134,-345.69011421,0.00994997,30]
[319551834,1710846642144,-208.46014037,0.00994997,30]
[319551835,1710846642154,-555.16241584,0.00994997,30]
[319551836,1710846642163,-155.01240099,0.00994997,30]
[319551837,1710846642173,-160.9072524,0.00994998,30]
[319551838,1710846642182,-190.47799946,0.00994998,30]
[319551839,1710846642193,-619.11186809,0.00994998,30]
[319551840,1710846642204,-225.99426354,0.00994999,30]
[319551841,1710846642214,-155.16447434,0.00994999,30]
[319551842,1710846642227,-4590.24196677,0.00994999,30]
[319551843,1710846642238,-201.14978555,0.00994999,30]
[319551844,1710846642249,-198.93902027,0.00994999,30]
[319551845,1710846642259,-195.832264,0.01,120]
[319551846,1710846642268,-10000.0,0.01174891,120]
[319551847,1710846642279,-10000.0,0.01429435,120]
[319551848,1710846642289,-1000.0,0.015,120]
[319551849,1710846642299,-10000.0,0.01739126,120]
[319551850,1710846642309,-174.81005296,0.01889912,120]
[319551851,1710846642320,-1500.0,0.02,120]
[319551852,1710846642329,-171.0,0.02,120]
[319551853,1710846642340,-649.92611022,0.02115912,120]
[319551887,1710846643816,-1000.0,0.02115912,120]
[319551910,1710846647535,-627.8,0.000529,30]
[319551911,1710846647547,-29045.45266064,0.000529,30]
[319552004,1710846851161,-154.93802479,0.0004,4]
[319552009,1710846863928,154.93802479,0.0004,4]
[319552015,1710846887948,154.93802479,0.0004,4]
[319552020,1710846907930,235.70824096,0.0004,4]
[319552025,1710846929664,-1197.34622779,0.00052897,4]
[319552026,1710846929702,-776.41349059,0.00052898,4]